fUSD/lending_fUSD_20260528
["ID","MTS","AMOUNT","RATE_DAILY","PERIOD"]
[423172172,1779901849000,-434.23603839,0.00038559,10]
[423172175,1779901849000,-434.23603839,0.00038559,10]
[423172168,1779901849000,-434.23603849,0.00038559,10]
[423172171,1779901849000,-434.23603839,0.00038559,10]
[423172170,1779901849000,-434.23603839,0.00038559,10]
[423172173,1779901849000,-434.23603839,0.00038559,10]
[423172167,1779901849000,-4204.34516602,0.00038549,7]
[423172185,1779901849000,-1226.69,0.000386,60]
[423172177,1779901849000,-434.23603839,0.00038559,10]
[423172176,1779901849000,-434.23603839,0.00038559,10]
[423172179,1779901849000,-161.28,0.0003859,105]
[423172181,1779901849000,-11610.85,0.000386,2]
[423172180,1779901849000,-266.44141423,0.000386,4]
[423172182,1779901849000,-11610.85,0.000386,2]
[423172183,1779901849000,-1226.699,0.000386,60]
[423172184,1779901849000,-1226.699,0.000386,60]
[423172187,1779901849000,-700.0,0.00038661,60]
[423172188,1779901849000,-2200.0,0.00038661,60]
[423172186,1779901849000,-1549.0,0.0003863,30]
[423172133,1779901849000,-899.0,0.00038356,2]
[423172178,1779901849000,-18309.79175035,0.00038564,2]
[423172164,1779901849000,-5947.24,0.000385,14]
[423172169,1779901849000,-434.23603839,0.00038559,10]
[423172161,1779901849000,-1589.0,0.00038445,11]
[423172159,1779901849000,-1589.0,0.00038432,11]
[423172138,1779901849000,-899.0,0.00038356,2]
[423172134,1779901849000,-899.0,0.00038356,2]
[423172139,1779901849000,-899.0,0.00038356,2]
[423172132,1779901849000,-899.0,0.00038356,2]
[423172135,1779901849000,-899.0,0.00038356,2]
[423172144,1779901849000,-899.0,0.00038356,2]
[423172152,1779901849000,-1549.0,0.00038356,30]
[423172143,1779901849000,-899.0,0.00038356,2]
[423172142,1779901849000,-899.0,0.00038356,2]
[423172145,1779901849000,-899.0,0.00038356,2]
[423172153,1779901849000,-237.06,0.00038373,30]
[423172141,1779901849000,-899.0,0.00038356,2]
[423172165,1779901849000,-195.0,0.00038538,11]
[423172162,1779901849000,-1595.0,0.00038445,11]
[423172147,1779901849000,-899.0,0.00038356,2]
[423172160,1779901849000,-2317.0,0.00038445,11]
[423172156,1779901849000,-352.97,0.000384,30]
[423172154,1779901849000,-150.0,0.00038377,2]
[423172155,1779901849000,-11610.85,0.000384,2]
[423172148,1779901849000,-899.0,0.00038356,2]
[423172151,1779901849000,-231.23998198,0.00038356,2]
[423172149,1779901849000,-899.0,0.00038356,2]
[423172146,1779901849000,-899.0,0.00038356,2]
[423172150,1779901849000,-920.18353042,0.00038356,2]
[423172229,1779901850000,-500.0,0.00038757,7]
[423172233,1779901850000,-500.0,0.00038757,7]
[423172226,1779901850000,-500.0,0.00038757,7]
[423172227,1779901850000,-500.0,0.00038757,7]
[423172225,1779901850000,-500.0,0.00038757,7]
[423172218,1779901850000,-500.0,0.00038757,7]
[423172217,1779901850000,-500.0,0.00038757,7]
[423172219,1779901850000,-500.0,0.00038757,7]
[423172216,1779901850000,-500.0,0.00038757,7]
[423172224,1779901850000,-500.0,0.00038757,7]
[423172222,1779901850000,-500.0,0.00038757,7]
[423172231,1779901850000,-500.0,0.00038757,7]
[423172240,1779901850000,-500.0,0.00038757,7]
[423172230,1779901850000,-500.0,0.00038757,7]
[423172223,1779901850000,-500.0,0.00038757,7]
[423172232,1779901850000,-500.0,0.00038757,7]
[423172234,1779901850000,-500.0,0.00038757,7]
[423172235,1779901850000,-500.0,0.00038757,7]
[423172245,1779901850000,-590.39,0.00038757,7]
[423172246,1779901850000,-617.07,0.00038757,7]
[423172236,1779901850000,-500.0,0.00038757,7]
[423172243,1779901850000,-500.0,0.00038757,7]
[423172239,1779901850000,-500.0,0.00038757,7]
[423172238,1779901850000,-500.0,0.00038757,7]
[423172215,1779901850000,-500.0,0.00038757,7]
[423172228,1779901850000,-500.0,0.00038757,7]
[423172214,1779901850000,-500.0,0.00038757,7]
[423172190,1779901850000,-150.0,0.00038724,2]
[423172211,1779901850000,-500.0,0.00038757,7]
[423172242,1779901850000,-500.0,0.00038757,7]
[423172191,1779901850000,-2317.0,0.00038752,11]
[423172193,1779901850000,-500.0,0.00038757,7]
[423172192,1779901850000,-500.0,0.00038757,7]
[423172189,1779901850000,-200.0,0.000387,16]
[423172196,1779901850000,-500.0,0.00038757,7]
[423172199,1779901850000,-500.0,0.00038757,7]
[423172198,1779901850000,-500.0,0.00038757,7]
[423172194,1779901850000,-500.0,0.00038757,7]
[423172197,1779901850000,-500.0,0.00038757,7]
[423172195,1779901850000,-500.0,0.00038757,7]
[423172200,1779901850000,-500.0,0.00038757,7]
[423172202,1779901850000,-500.0,0.00038757,7]
[423172203,1779901850000,-500.0,0.00038757,7]
[423172204,1779901850000,-500.0,0.00038757,7]
[423172201,1779901850000,-500.0,0.00038757,7]
[423172207,1779901850000,-500.0,0.00038757,7]
[423172210,1779901850000,-500.0,0.00038757,7]
[423172205,1779901850000,-500.0,0.00038757,7]
[423172206,1779901850000,-500.0,0.00038757,7]
[423172208,1779901850000,-500.0,0.00038757,7]
[423172209,1779901850000,-500.0,0.00038757,7]
[423172212,1779901850000,-500.0,0.00038757,7]
[423172220,1779901850000,-500.0,0.00038757,7]
[423172221,1779901850000,-500.0,0.00038757,7]
[423172213,1779901850000,-500.0,0.00038757,7]
[423172237,1779901850000,-500.0,0.00038757,7]
[423172241,1779901850000,-500.0,0.00038757,7]
[423172247,1779901850000,-1524.91555555,0.00038759,30]
[423172276,1779901850000,-300.0,0.00038904,120]
[423172277,1779901850000,-300.0,0.00038904,120]
[423172278,1779901850000,-300.0,0.00038904,120]
[423172279,1779901850000,-300.0,0.00038904,120]
[423172280,1779901850000,-300.0,0.00038904,120]
[423172283,1779901850000,-300.0,0.00038904,120]
[423172282,1779901850000,-300.0,0.00038904,120]
[423172284,1779901850000,-300.0,0.00038904,120]
[423172285,1779901850000,-300.0,0.00038904,120]
[423172286,1779901850000,-300.0,0.00038904,120]
[423172290,1779901850000,-2237.0,0.00038906,11]
[423172288,1779901850000,-427.484109,0.00038904,120]
[423172275,1779901850000,-300.0,0.00038904,120]
[423172289,1779901850000,-1549.0,0.00038904,30]
[423172291,1779901850000,-1589.0,0.00038931,11]
[423172293,1779901850000,-2317.0,0.00038968,11]
[423172297,1779901850000,-1639.89254,0.00039,120]
[423172302,1779901850000,-525.0,0.0003903,2]
[423172296,1779901850000,-1144.6,0.00039,120]
[423172298,1779901850000,-2317.0,0.00039004,11]
[423172299,1779901850000,-2317.0,0.0003902,11]
[423172294,1779901850000,-234.0,0.00038989,60]
[423172300,1779901850000,-928.0,0.0003903,2]
[423172301,1779901850000,-1272.0,0.0003903,2]
[423172295,1779901850000,-152.0,0.00039,120]
[423172244,1779901850000,-500.0,0.00038757,7]
[423172292,1779901850000,-46247.84946388,0.00038941,6]
[423172281,1779901850000,-300.0,0.00038904,120]
[423172287,1779901850000,-300.0,0.00038904,120]
[423172272,1779901850000,-300.0,0.00038904,120]
[423172249,1779901850000,-1589.0,0.00038767,11]
[423172274,1779901850000,-300.0,0.00038904,120]
[423172250,1779901850000,-1589.0,0.00038789,11]
[423172256,1779901850000,-300.0,0.00038904,120]
[423172254,1779901850000,-272.96,0.00038884,30]
[423172248,1779901850000,-1536.11026823,0.00038759,30]
[423172252,1779901850000,-2317.0,0.00038846,11]
[423172251,1779901850000,-157930.0,0.000388,30]
[423172257,1779901850000,-300.0,0.00038904,120]
[423172253,1779901850000,-1000.0,0.00038856,120]
[423172259,1779901850000,-300.0,0.00038904,120]
[423172269,1779901850000,-300.0,0.00038904,120]
[423172265,1779901850000,-300.0,0.00038904,120]
[423172255,1779901850000,-151.0,0.000389,120]
[423172270,1779901850000,-300.0,0.00038904,120]
[423172273,1779901850000,-300.0,0.00038904,120]
[423172258,1779901850000,-300.0,0.00038904,120]
[423172271,1779901850000,-300.0,0.00038904,120]
[423172268,1779901850000,-300.0,0.00038904,120]
[423172266,1779901850000,-300.0,0.00038904,120]
[423172267,1779901850000,-300.0,0.00038904,120]
[423172262,1779901850000,-300.0,0.00038904,120]
[423172261,1779901850000,-300.0,0.00038904,120]
[423172260,1779901850000,-300.0,0.00038904,120]
[423172263,1779901850000,-300.0,0.00038904,120]
[423172264,1779901850000,-300.0,0.00038904,120]
[423172342,1779901851000,-541.00133101,0.00039178,2]
[423172351,1779901851000,-415.79,0.00039199,30]
[423172348,1779901851000,-221.09502106,0.00039196,120]
[423172343,1779901851000,-1549.0,0.00039178,30]
[423172340,1779901851000,-1000.0,0.00039178,2]
[423172332,1779901851000,-1000.0,0.00039178,2]
[423172335,1779901851000,-1000.0,0.00039178,2]
[423172337,1779901851000,-1000.0,0.00039178,2]
[423172338,1779901851000,-1000.0,0.00039178,2]
[423172333,1779901851000,-1000.0,0.00039178,2]
[423172345,1779901851000,-4204.34516602,0.00039191,7]
[423172336,1779901851000,-1000.0,0.00039178,2]
[423172346,1779901851000,-221.09502107,0.00039196,120]
[423172354,1779901851000,-2221.82,0.000392,120]
[423172344,1779901851000,-2102.17258301,0.00039191,7]
[423172347,1779901851000,-210.90732829,0.00039196,120]
[423172350,1779901851000,-300.0,0.00039199,30]
[423172349,1779901851000,-210.90732828,0.00039196,120]
[423172353,1779901851000,-216.77,0.000392,120]
[423172352,1779901851000,-163.81,0.000392,30]
[423172362,1779901851000,-906.0,0.00039333,30]
[423172361,1779901851000,-150.0,0.00039315,30]
[423172356,1779901851000,-213.52814154,0.0003923,2]
[423172358,1779901851000,-657384.82761112,0.00039295,5]
[423172355,1779901851000,-37235.41872638,0.0003921,2]
[423172363,1779901851000,-906.0,0.00039333,30]
[423172331,1779901851000,-1000.0,0.00039178,2]
[423172341,1779901851000,-924.08,0.00039178,2]
[423172334,1779901851000,-1000.0,0.00039178,2]
[423172304,1779901851000,-6063.0,0.0003903,2]
[423172328,1779901851000,-1000.0,0.00039178,2]
[423172357,1779901851000,-5800.0,0.00039285,14]
[423172303,1779901851000,-1225.0,0.0003903,2]
[423172306,1779901851000,-480.0,0.00039044,30]
[423172316,1779901851000,-28127.54,0.000391,14]
[423172305,1779901851000,-3637.0,0.0003903,2]
[423172308,1779901851000,-313.45,0.00039058,30]
[423172309,1779901851000,-353.0,0.00039063,10]
[423172312,1779901851000,-500.0,0.00039076,49]
[423172310,1779901851000,-350.0,0.00039068,2]
[423172307,1779901851000,-408.84,0.00039058,30]
[423172311,1779901851000,-163.0,0.00039072,11]
[423172315,1779901851000,-10623.64,0.000391,14]
[423172313,1779901851000,-158.22780846,0.00039083,120]
[423172314,1779901851000,-1221.45,0.000391,14]
[423172317,1779901851000,-137975.70983442,0.000391,30]
[423172319,1779901851000,-500.0,0.00039102,120]
[423172327,1779901851000,-1000.0,0.00039178,2]
[423172325,1779901851000,-1000.0,0.00039178,2]
[423172323,1779901851000,-1589.0,0.00039178,11]
[423172321,1779901851000,-1589.0,0.00039166,11]
[423172326,1779901851000,-1000.0,0.00039178,2]
[423172318,1779901851000,-1200.0,0.00039102,120]
[423172320,1779901851000,-163.0,0.00039111,11]
[423172322,1779901851000,-161.28,0.0003917,116]
[423172324,1779901851000,-1000.0,0.00039178,2]
[423172339,1779901851000,-1000.0,0.00039178,2]
[423172329,1779901851000,-1000.0,0.00039178,2]
[423172330,1779901851000,-1000.0,0.00039178,2]
[423172360,1779901851000,-11610.85,0.000393,2]
[423172368,1779901851000,-4204.34516602,0.00039333,7]
[423172364,1779901851000,-906.0,0.00039333,30]
[423172393,1779901851000,-578.20924308,0.00039437,20]
[423172398,1779901851000,-644.79446245,0.00039437,20]
[423172402,1779901851000,-668.65185756,0.00039437,20]
[423172399,1779901851000,-181.08010149,0.00039437,20]
[423172400,1779901851000,-158.13465189,0.00039437,20]
[423172397,1779901851000,-174.61919141,0.00039437,20]
[423172401,1779901851000,-1000.0,0.00039437,20]
[423172404,1779901851000,-200.0,0.00039437,20]
[423172414,1779901851000,-693.39197629,0.00039437,20]
[423172415,1779901851000,-151.0,0.00039437,20]
[423172416,1779901851000,-747.80937859,0.00039437,20]
[423172403,1779901851000,-187.78006524,0.00039437,20]
[423172406,1779901851000,-194.72792766,0.00039437,20]
[423172409,1779901851000,-721.12765534,0.00039437,20]
[423172407,1779901851000,-693.39197629,0.00039437,20]
[423172405,1779901851000,-958.8056709,0.00039437,20]
[423172408,1779901851000,-200.0,0.00039437,20]
[423172411,1779901851000,-201.93286098,0.00039437,20]
[423172410,1779901851000,-2080.17592889,0.00039437,20]
[423172413,1779901851000,-200.0,0.00039437,20]
[423172412,1779901851000,-719.04747942,0.00039437,20]
[423172417,1779901851000,-2157.14243826,0.00039437,20]
[423172422,1779901851000,-775.4783256,0.00039437,20]
[423172419,1779901851000,-745.65223615,0.00039437,20]
[423172420,1779901851000,-719.04747942,0.00039437,20]
[423172418,1779901851000,-209.40437684,0.00039437,20]
[423172424,1779901851000,-2236.95670847,0.00039437,20]
[423172394,1779901851000,-202.94842246,0.00039437,20]
[423172396,1779901851000,-621.78829552,0.00039437,20]
[423172421,1779901851000,-1428.38747117,0.00039437,20]
[423172395,1779901851000,-599.60298507,0.00039437,20]
[423172392,1779901851000,-1420.22890371,0.00039435,120]
[423172369,1779901851000,-1420.2,0.00039335,120]
[423172367,1779901851000,-2102.17258301,0.00039333,7]
[423172423,1779901851000,-151.0,0.00039437,20]
[423172373,1779901851000,-2004.0458,0.0003936,112]
[423172376,1779901851000,-302.29,0.00039361,30]
[423172375,1779901851000,-300.0,0.00039361,30]
[423172365,1779901851000,-906.0,0.00039333,30]
[423172370,1779901851000,-1589.0,0.0003934,11]
[423172366,1779901851000,-902.0,0.00039333,30]
[423172377,1779901851000,-258.63753108,0.00039361,2]
[423172374,1779901851000,-2004.0458,0.0003936,112]
[423172372,1779901851000,-2004.0458,0.0003936,112]
[423172371,1779901851000,-2004.0458,0.0003936,112]
[423172359,1779901851000,-151.0,0.000393,120]
[423172389,1779901851000,-800.0,0.00039431,14]
[423172379,1779901851000,-163.0,0.00039405,11]
[423172384,1779901851000,-800.0,0.00039431,14]
[423172381,1779901851000,-163.0,0.00039424,11]
[423172378,1779901851000,-1420.2,0.00039385,120]
[423172382,1779901851000,-163.0,0.00039431,11]
[423172388,1779901851000,-800.0,0.00039431,14]
[423172386,1779901851000,-800.0,0.00039431,14]
[423172391,1779901851000,-800.0,0.00039431,14]
[423172383,1779901851000,-2317.0,0.00039431,11]
[423172390,1779901851000,-800.0,0.00039431,14]
[423172385,1779901851000,-800.0,0.00039431,14]
[423172380,1779901851000,-3594.94,0.00039407,2]
[423172387,1779901851000,-800.0,0.00039431,14]
[423172453,1779901852000,-200.0,0.00039437,20]
[423172449,1779901852000,-200.0,0.00039437,20]
[423172454,1779901852000,-862.28603014,0.00039437,20]
[423172456,1779901852000,-1842.0326633,0.00039437,20]
[423172457,1779901852000,-894.19061325,0.00039437,20]
[423172458,1779901852000,-1000.04826021,0.00039437,20]
[423172459,1779901852000,-157.54978746,0.00039437,20]
[423172460,1779901852000,-1910.18787185,0.00039437,20]
[423172470,1779901852000,-1000.0,0.00039449,2]
[423172455,1779901852000,-964.36669258,0.00039437,20]
[423172468,1779901852000,-1000.0,0.00039449,2]
[423172467,1779901852000,-200.0,0.00039438,20]
[423172464,1779901852000,-961.58486558,0.00039437,20]
[423172463,1779901852000,-1980.8648231,0.00039437,20]
[423172469,1779901852000,-1000.0,0.00039449,2]
[423172452,1779901852000,-1776.30922209,0.00039437,20]
[423172466,1779901852000,-997.16350561,0.00039437,20]
[423172461,1779901852000,-927.27566594,0.00039437,20]
[423172465,1779901852000,-2054.15682156,0.00039437,20]
[423172471,1779901852000,-1000.0,0.00039449,2]
[423172475,1779901852000,-4178.07912236,0.00039459,2]
[423172474,1779901852000,-266.05748578,0.00039459,2]
[423172462,1779901852000,-1037.05004583,0.00039437,20]
[423172450,1779901852000,-831.51979762,0.00039437,20]
[423172440,1779901852000,-1592.87721992,0.00039437,20]
[423172448,1779901852000,-1712.93078311,0.00039437,20]
[423172473,1779901852000,-1549.0,0.00039452,30]
[423172425,1779901852000,-200.0,0.00039437,20]
[423172426,1779901852000,-217.15233878,0.00039437,20]
[423172427,1779901852000,-1481.2378076,0.00039437,20]
[423172429,1779901852000,-804.17102365,0.00039437,20]
[423172439,1779901852000,-200.0,0.00039437,20]
[423172431,1779901852000,-2319.72410669,0.00039437,20]
[423172430,1779901852000,-773.24136889,0.00039437,20]
[423172428,1779901852000,-745.65223615,0.00039437,20]
[423172438,1779901852000,-2405.55389863,0.00039437,20]
[423172451,1779901852000,-929.95823778,0.00039437,20]
[423172437,1779901852000,-506.84142615,0.00039437,20]
[423172432,1779901852000,-200.0,0.00039437,20]
[423172435,1779901852000,-1536.04360648,0.00039437,20]
[423172434,1779901852000,-773.24136889,0.00039437,20]
[423172441,1779901852000,-864.78058953,0.00039437,20]
[423172442,1779901852000,-200.0,0.00039437,20]
[423172444,1779901852000,-1651.81367706,0.00039437,20]
[423172443,1779901852000,-2412.71383108,0.00039437,20]
[423172446,1779901852000,-801.85129954,0.00039437,20]
[423172445,1779901852000,-896.77747134,0.00039437,20]
[423172447,1779901852000,-200.0,0.00039437,20]
[423172433,1779901852000,-316.47394389,0.00039437,20]
[423172436,1779901852000,-833.92535152,0.00039437,20]
[423172476,1779901852000,-500.0,0.00039483,60]
[423172478,1779901852000,-2200.0,0.00039483,60]
[423172504,1779901852000,-1100.0,0.00039534,30]
[423172505,1779901852000,-1100.0,0.00039534,30]
[423172506,1779901852000,-1100.0,0.00039534,30]
[423172508,1779901852000,-1100.0,0.00039534,30]
[423172507,1779901852000,-1100.0,0.00039534,30]
[423172511,1779901852000,-1100.0,0.00039534,30]
[423172510,1779901852000,-1100.0,0.00039534,30]
[423172509,1779901852000,-1100.0,0.00039534,30]
[423172513,1779901852000,-1100.0,0.00039534,30]
[423172517,1779901852000,-1100.0,0.00039534,30]
[423172501,1779901852000,-1100.0,0.00039534,30]
[423172514,1779901852000,-1100.0,0.00039534,30]
[423172515,1779901852000,-1100.0,0.00039534,30]
[423172519,1779901852000,-1100.0,0.00039534,30]
[423172518,1779901852000,-1100.0,0.00039534,30]
[423172520,1779901852000,-1100.0,0.00039534,30]
[423172521,1779901852000,-1100.0,0.00039534,30]
[423172523,1779901852000,-1100.0,0.00039534,30]
[423172525,1779901852000,-1100.0,0.00039534,30]
[423172524,1779901852000,-1100.0,0.00039534,30]
[423172522,1779901852000,-1100.0,0.00039534,30]
[423172472,1779901852000,-1470.16241665,0.00039449,2]
[423172516,1779901852000,-1100.0,0.00039534,30]
[423172503,1779901852000,-1100.0,0.00039534,30]
[423172512,1779901852000,-1100.0,0.00039534,30]
[423172502,1779901852000,-1100.0,0.00039534,30]
[423172481,1779901852000,-2317.0,0.00039498,11]
[423172496,1779901852000,-1100.0,0.00039534,30]
[423172479,1779901852000,-434.23603839,0.00039494,11]
[423172480,1779901852000,-700000.0,0.00039495,5]
[423172477,1779901852000,-700.0,0.00039483,60]
[423172482,1779901852000,-2347.594,0.000395,30]
[423172493,1779901852000,-1100.0,0.00039534,30]
[423172492,1779901852000,-1100.0,0.00039534,30]
[423172483,1779901852000,-2347.594,0.000395,30]
[423172491,1779901852000,-1100.0,0.00039534,30]
[423172494,1779901852000,-1100.0,0.00039534,30]
[423172484,1779901852000,-2347.59,0.000395,30]
[423172489,1779901852000,-1100.0,0.00039534,30]
[423172486,1779901852000,-1219.63090047,0.00039505,2]
[423172485,1779901852000,-2328.30927666,0.00039502,30]
[423172488,1779901852000,-1100.0,0.00039534,30]
[423172487,1779901852000,-411.0,0.00039506,2]
[423172490,1779901852000,-1100.0,0.00039534,30]
[423172495,1779901852000,-1100.0,0.00039534,30]
[423172499,1779901852000,-1100.0,0.00039534,30]
[423172498,1779901852000,-1100.0,0.00039534,30]
[423172497,1779901852000,-1100.0,0.00039534,30]
[423172500,1779901852000,-1100.0,0.00039534,30]
[423172567,1779901853000,-233.300099,0.00039548,30]
[423172558,1779901853000,-151.0,0.00039548,30]
[423172560,1779901853000,-151.0,0.00039548,30]
[423172557,1779901853000,-191.695608,0.00039548,30]
[423172559,1779901853000,-151.0,0.00039548,30]
[423172564,1779901853000,-151.0,0.00039548,30]
[423172554,1779901853000,-666.0,0.00039547,30]
[423172565,1779901853000,-151.0,0.00039548,30]
[423172561,1779901853000,-151.0,0.00039548,30]
[423172566,1779901853000,-262.392171,0.00039548,30]
[423172569,1779901853000,-197.284723,0.00039548,20]
[423172556,1779901853000,-151.0,0.00039548,30]
[423172568,1779901853000,-151.0,0.00039548,20]
[423172580,1779901853000,-266.01708,0.00039548,30]
[423172571,1779901853000,-193.337067,0.00039548,30]
[423172578,1779901853000,-151.0,0.00039548,30]
[423172576,1779901853000,-151.0,0.00039548,30]
[423172572,1779901853000,-151.0,0.00039548,30]
[423172579,1779901853000,-206.201788,0.00039548,30]
[423172573,1779901853000,-151.0,0.00039548,30]
[423172574,1779901853000,-151.0,0.00039548,30]
[423172575,1779901853000,-151.0,0.00039548,30]
[423172577,1779901853000,-151.0,0.00039548,30]
[423172581,1779901853000,-151.0,0.00039548,30]
[423172582,1779901853000,-151.0,0.00039548,30]
[423172555,1779901853000,-151.0,0.00039548,30]
[423172570,1779901853000,-151.0,0.00039548,30]
[423172563,1779901853000,-151.0,0.00039548,30]
[423172531,1779901853000,-1100.0,0.00039534,30]
[423172549,1779901853000,-300.0,0.00039547,10]
[423172588,1779901853000,-151.0,0.00039548,30]
[423172529,1779901853000,-1100.0,0.00039534,30]
[423172527,1779901853000,-1100.0,0.00039534,30]
[423172528,1779901853000,-1100.0,0.00039534,30]
[423172526,1779901853000,-1100.0,0.00039534,30]
[423172530,1779901853000,-1100.0,0.00039534,30]
[423172534,1779901853000,-264.2464347,0.00039547,7]
[423172537,1779901853000,-300.0,0.00039547,10]
[423172535,1779901853000,-300.0,0.00039547,10]
[423172536,1779901853000,-300.0,0.00039547,10]
[423172533,1779901853000,-557.0,0.00039534,30]
[423172532,1779901853000,-1100.0,0.00039534,30]
[423172538,1779901853000,-300.0,0.00039547,10]
[423172540,1779901853000,-300.0,0.00039547,10]
[423172539,1779901853000,-300.0,0.00039547,10]
[423172541,1779901853000,-300.0,0.00039547,10]
[423172542,1779901853000,-300.0,0.00039547,10]
[423172552,1779901853000,-300.0,0.00039547,10]
[423172553,1779901853000,-300.0,0.00039547,10]
[423172543,1779901853000,-300.0,0.00039547,10]
[423172544,1779901853000,-300.0,0.00039547,10]
[423172545,1779901853000,-300.0,0.00039547,10]
[423172547,1779901853000,-666.0,0.00039547,30]
[423172546,1779901853000,-666.0,0.00039547,30]
[423172548,1779901853000,-666.0,0.00039547,30]
[423172551,1779901853000,-300.0,0.00039547,10]
[423172550,1779901853000,-300.0,0.00039547,10]
[423172562,1779901853000,-216.465531,0.00039548,30]
[423172587,1779901853000,-151.0,0.00039548,30]
[423172639,1779901853000,-432.637886,0.00039548,30]
[423172589,1779901853000,-151.0,0.00039548,30]
[423172618,1779901853000,-471.418946,0.00039548,7]
[423172617,1779901853000,-218.119828,0.00039548,30]
[423172619,1779901853000,-151.0,0.00039548,30]
[423172624,1779901853000,-290.411815,0.00039548,30]
[423172621,1779901853000,-471.418946,0.00039548,7]
[423172620,1779901853000,-432.637886,0.00039548,30]
[423172622,1779901853000,-151.0,0.00039548,30]
[423172623,1779901853000,-471.418946,0.00039548,7]
[423172626,1779901853000,-471.418946,0.00039548,7]
[423172627,1779901853000,-432.637886,0.00039548,30]
[423172628,1779901853000,-432.637886,0.00039548,30]
[423172638,1779901853000,-201.37303,0.00039548,30]
[423172630,1779901853000,-432.637886,0.00039548,30]
[423172637,1779901853000,-151.0,0.00039548,30]
[423172636,1779901853000,-471.418946,0.00039548,7]
[423172629,1779901853000,-471.418946,0.00039548,7]
[423172631,1779901853000,-471.418946,0.00039548,7]
[423172634,1779901853000,-151.0,0.00039548,30]
[423172632,1779901853000,-151.0,0.00039548,30]
[423172633,1779901853000,-471.418946,0.00039548,7]
[423172635,1779901853000,-432.637886,0.00039548,30]
[423172640,1779901853000,-172.296715,0.00039548,30]
[423172645,1779901853000,-432.637886,0.00039548,30]
[423172641,1779901853000,-151.0,0.00039548,30]
[423172643,1779901853000,-151.0,0.00039548,30]
[423172644,1779901853000,-471.418946,0.00039548,7]
[423172586,1779901853000,-153.322172,0.00039548,30]
[423172616,1779901853000,-432.637886,0.00039548,30]
[423172614,1779901853000,-151.0,0.00039548,30]
[423172642,1779901853000,-432.637886,0.00039548,30]
[423172625,1779901853000,-432.637886,0.00039548,30]
[423172615,1779901853000,-432.637886,0.00039548,30]
[423172583,1779901853000,-151.0,0.00039548,30]
[423172584,1779901853000,-257.82656,0.00039548,30]
[423172591,1779901853000,-151.0,0.00039548,30]
[423172590,1779901853000,-151.0,0.00039548,30]
[423172592,1779901853000,-151.0,0.00039548,30]
[423172599,1779901853000,-151.0,0.00039548,30]
[423172593,1779901853000,-151.0,0.00039548,30]
[423172600,1779901853000,-151.0,0.00039548,30]
[423172601,1779901853000,-256.911012,0.00039548,30]
[423172597,1779901853000,-151.0,0.00039548,30]
[423172596,1779901853000,-151.0,0.00039548,30]
[423172594,1779901853000,-151.0,0.00039548,30]
[423172585,1779901853000,-151.0,0.00039548,30]
[423172598,1779901853000,-151.0,0.00039548,30]
[423172595,1779901853000,-151.0,0.00039548,30]
[423172605,1779901853000,-432.637886,0.00039548,30]
[423172609,1779901853000,-151.0,0.00039548,30]
[423172613,1779901853000,-432.637886,0.00039548,30]
[423172608,1779901853000,-432.637886,0.00039548,30]
[423172607,1779901853000,-432.637886,0.00039548,30]
[423172606,1779901853000,-151.0,0.00039548,30]